[Event "Titled Tuesday Blitz August 1 Late 2023"]
[White "Karwowski, Kacper"]
[Black "Bach, Matthias"]
[WhiteFideId "1126032"]
[BlackFideId "4603168"]
[WhiteElo "2540"]
[BlackElo "2373"]
[Result "1-0"]
[Round "10"]
[TimeControl "180+1"]
[Date "2023.08.01"]
[WhiteClock "0:00:51"]
[BlackClock "0:00:00"]
[Board "71"]

1. e4 {[%clk 0:02:57]}  e5 {[%clk 0:02:55]} 2. Nf3 {[%clk 0:02:57]}  Nc6 {[%clk 0:02:54]} 3. d4 {[%clk 0:02:57]}  exd4 {[%clk 0:02:54]} 4. Nxd4 {[%clk 0:02:58]}  Nf6 {[%clk 0:02:53]} 5. Nc3 {[%clk 0:02:58]}  Bb4 {[%clk 0:02:51]} 6. Nxc6 {[%clk 0:02:58]}  bxc6 {[%clk 0:02:51]} 7. Bd3 {[%clk 0:02:58]}  d5 {[%clk 0:02:51]} 8. exd5 {[%clk 0:02:59]}  cxd5 {[%clk 0:02:50]} 9. O-O {[%clk 0:02:59]}  O-O {[%clk 0:02:47]} 10. h3 {[%clk 0:02:58]}  c6 {[%clk 0:02:46]} 11. Ne2 {[%clk 0:02:55]}  Re8 {[%clk 0:02:42]} 12. b3 {[%clk 0:02:54]}  Ne4 {[%clk 0:02:41]} 13. Bb2 {[%clk 0:02:54]}  Bf5 {[%clk 0:02:38]} 14. Nd4 {[%clk 0:02:53]}  Bd7 {[%clk 0:02:33]} 15. a3 {[%clk 0:02:29]}  Bc3 {[%clk 0:02:24]} 16. Bxc3 {[%clk 0:02:28]}  Nxc3 {[%clk 0:02:24]} 17. Qd2 {[%clk 0:02:29]}  Ne4 {[%clk 0:02:23]} 18. Bxe4 {[%clk 0:02:29]}  Rxe4 {[%clk 0:02:22]} 19. b4 {[%clk 0:02:29]}  Qf6 {[%clk 0:02:16]} 20. Nb3 {[%clk 0:02:29]}  Rae8 {[%clk 0:02:14]} 21. Nc5 {[%clk 0:02:27]}  R4e7 {[%clk 0:02:09]} 22. Rae1 {[%clk 0:02:23]}  Bf5 {[%clk 0:01:50]} 23. c3 {[%clk 0:02:19]}  h6 {[%clk 0:01:37]} 24. Nb3 {[%clk 0:02:10]}  Be4 {[%clk 0:01:33]} 25. f3 {[%clk 0:02:04]}  Bf5 {[%clk 0:01:30]} 26. Nd4 {[%clk 0:02:03]}  Bd7 {[%clk 0:01:06]} 27. Rxe7 {[%clk 0:01:56]}  Qxe7 {[%clk 0:01:04]} 28. Nc2 {[%clk 0:01:56]}  Qh4 {[%clk 0:00:52]} 29. Re1 {[%clk 0:01:55]}  Re6 {[%clk 0:00:49]} 30. Rxe6 {[%clk 0:01:54]}  fxe6 {[%clk 0:00:48]} 31. Qf2 {[%clk 0:01:54]}  Qf6 {[%clk 0:00:47]} 32. Qxa7 {[%clk 0:01:51]}  Be8 {[%clk 0:00:45]} 33. Qc5 {[%clk 0:01:42]}  e5 {[%clk 0:00:42]} 34. a4 {[%clk 0:01:42]}  Bg6 {[%clk 0:00:41]} 35. Ne3 {[%clk 0:01:37]}  d4 {[%clk 0:00:40]} 36. Ng4 {[%clk 0:01:29]}  Qf4 {[%clk 0:00:36]} 37. cxd4 {[%clk 0:01:23]}  exd4 {[%clk 0:00:33]} 38. Qxc6 {[%clk 0:01:20]}  Bf7 {[%clk 0:00:20]} 39. Qc8+ {[%clk 0:01:15]}  Kh7 {[%clk 0:00:19]} 40. Qc2+ {[%clk 0:01:15]}  Bg6 {[%clk 0:00:18]} 41. Qd1 {[%clk 0:01:07]}  d3 {[%clk 0:00:17]} 42. b5 {[%clk 0:01:05]}  Qd4+ {[%clk 0:00:16]} 43. Nf2 {[%clk 0:01:02]}  d2 {[%clk 0:00:15]} 44. b6 {[%clk 0:00:59]}  Qxb6 {[%clk 0:00:09]} 45. Qxd2 {[%clk 0:00:58]}  Qb1+ {[%clk 0:00:09]} 46. Kh2 {[%clk 0:00:58]}  Qa1 {[%clk 0:00:08]} 47. a5 {[%clk 0:00:58]}  Qe5+ {[%clk 0:00:07]} 48. f4 {[%clk 0:00:58]}  Qb5 {[%clk 0:00:06]} 49. Ng4 {[%clk 0:00:57]}  h5 {[%clk 0:00:06]} 50. Ne5 {[%clk 0:00:58]}  Be4 {[%clk 0:00:05]} 51. Qe3 {[%clk 0:00:52]}  Bf5 {[%clk 0:00:04]} 52. g4 {[%clk 0:00:51]}  hxg4 {[%clk 0:00:02]} 53. hxg4 {[%clk 0:00:52]}  Be6 {[%clk 0:00:00]} 54. Qd3+ {[%clk 0:00:51]} 1-0


[Site "https://www.chess.com"]

[Event "Titled Tuesday Blitz August 1 Late 2023"]
[White "Harriott, Tyrell"]
[Black "Lopez Gracia, Fernando"]
[WhiteFideId "2086484"]
[BlackFideId "2207184"]
[WhiteElo "2452"]
[BlackElo "2328"]
[Result "0-1"]
[Round "10"]
[TimeControl "180+1"]
[Date "2023.08.01"]
[WhiteClock "0:00:09"]
[BlackClock "0:00:18"]
[Board "77"]

1. d4 {[%clk 0:02:56]}  Nf6 {[%clk 0:02:59]} 2. e3 {[%clk 0:02:57]}  e6 {[%clk 0:02:58]} 3. Bd3 {[%clk 0:02:53]}  b6 {[%clk 0:02:57]} 4. f4 {[%clk 0:02:53]}  Bb7 {[%clk 0:02:57]} 5. Nf3 {[%clk 0:02:54]}  c5 {[%clk 0:02:56]} 6. O-O {[%clk 0:02:53]}  d6 {[%clk 0:02:54]} 7. c3 {[%clk 0:02:53]}  Nbd7 {[%clk 0:02:54]} 8. Nbd2 {[%clk 0:02:53]}  Be7 {[%clk 0:02:50]} 9. a3 {[%clk 0:02:46]}  O-O {[%clk 0:02:49]} 10. e4 {[%clk 0:02:46]}  cxd4 {[%clk 0:02:49]} 11. cxd4 {[%clk 0:02:46]}  e5 {[%clk 0:02:49]} 12. fxe5 {[%clk 0:02:40]}  dxe5 {[%clk 0:02:49]} 13. d5 {[%clk 0:02:41]}  Bc5+ {[%clk 0:02:45]} 14. Kh1 {[%clk 0:02:40]}  Ng4 {[%clk 0:02:46]} 15. Qe2 {[%clk 0:02:30]}  f5 {[%clk 0:02:31]} 16. Nb3 {[%clk 0:02:16]}  fxe4 {[%clk 0:02:27]} 17. Bxe4 {[%clk 0:02:10]}  Ndf6 {[%clk 0:02:26]} 18. Nxc5 {[%clk 0:02:02]}  bxc5 {[%clk 0:02:27]} 19. Bg5 {[%clk 0:01:44]}  Qb6 {[%clk 0:02:14]} 20. Rad1 {[%clk 0:01:41]}  Ba6 {[%clk 0:02:05]} 21. Bd3 {[%clk 0:01:03]}  Bxd3 {[%clk 0:02:01]} 22. Qxd3 {[%clk 0:00:53]}  e4 {[%clk 0:02:00]} 23. Qc4 {[%clk 0:00:51]}  exf3 {[%clk 0:01:59]} 24. gxf3 {[%clk 0:00:45]}  Ne5 {[%clk 0:01:53]} 25. Qe2 {[%clk 0:00:28]}  Rae8 {[%clk 0:01:51]} 26. d6 {[%clk 0:00:23]}  Nf7 {[%clk 0:01:47]} 27. Qc4 {[%clk 0:00:22]}  Kh8 {[%clk 0:01:36]} 28. Bxf6 {[%clk 0:00:21]}  gxf6 {[%clk 0:01:37]} 29. d7 {[%clk 0:00:17]}  Rd8 {[%clk 0:01:37]} 30. Rfe1 {[%clk 0:00:14]}  Qc6 {[%clk 0:01:35]} 31. Qf4 {[%clk 0:00:11]}  Ne5 {[%clk 0:01:32]} 32. Re4 {[%clk 0:00:09]}  Rxd7 {[%clk 0:01:27]} 33. Rg1 {[%clk 0:00:06]}  Rdf7 {[%clk 0:01:19]} 34. Qf5 {[%clk 0:00:05]}  Qd7 {[%clk 0:01:13]} 35. Qf4 {[%clk 0:00:04]}  Ng6 {[%clk 0:01:06]} 36. Qh6 {[%clk 0:00:03]}  Qf5 {[%clk 0:01:06]} 37. Reg4 {[%clk 0:00:02]}  Qxf3+ {[%clk 0:01:05]} 38. R1g2 {[%clk 0:00:03]}  Rd8 {[%clk 0:00:59]} 39. h3 {[%clk 0:00:02]}  Qd1+ {[%clk 0:00:35]} 40. Kh2 {[%clk 0:00:02]}  Qd6+ {[%clk 0:00:35]} 41. Kh1 {[%clk 0:00:02]}  Qe5 {[%clk 0:00:26]} 42. Rxg6 {[%clk 0:00:01]}  Rd1+ {[%clk 0:00:26]} 43. Rg1 {[%clk 0:00:02]}  Qe4+ {[%clk 0:00:22]} 44. Rg2 {[%clk 0:00:02]}  Rxg1+ {[%clk 0:00:22]} 45. Kxg1 {[%clk 0:00:03]}  Qd4+ {[%clk 0:00:21]} 46. Kh2 {[%clk 0:00:03]}  f5 {[%clk 0:00:18]} 47. Qg5 {[%clk 0:00:03]}  Qe5+ {[%clk 0:00:18]} 48. Kh1 {[%clk 0:00:03]}  Qe8 {[%clk 0:00:15]} 49. Qf4 {[%clk 0:00:03]}  Qf8 {[%clk 0:00:15]} 50. Qc4 {[%clk 0:00:02]}  Rg7 {[%clk 0:00:14]} 51. Qc3 {[%clk 0:00:02]}  Kg8 {[%clk 0:00:14]} 52. h4 {[%clk 0:00:03]}  Rxg2 {[%clk 0:00:13]} 53. Kxg2 {[%clk 0:00:04]}  Qg7+ {[%clk 0:00:13]} 54. Kf3 {[%clk 0:00:04]}  Qxc3+ {[%clk 0:00:13]} 55. bxc3 {[%clk 0:00:04]}  Kf7 {[%clk 0:00:14]} 56. Kf4 {[%clk 0:00:04]}  Kf6 {[%clk 0:00:15]} 57. c4 {[%clk 0:00:04]}  h5 {[%clk 0:00:15]} 58. a4 {[%clk 0:00:04]}  a5 {[%clk 0:00:15]} 59. Ke3 {[%clk 0:00:04]}  Ke5 {[%clk 0:00:15]} 60. Kd3 {[%clk 0:00:05]}  f4 {[%clk 0:00:16]} 61. Kc3 {[%clk 0:00:05]}  Ke4 {[%clk 0:00:16]} 62. Kc2 {[%clk 0:00:05]}  Ke3 {[%clk 0:00:16]} 63. Kd1 {[%clk 0:00:04]}  Kd4 {[%clk 0:00:16]} 64. Ke2 {[%clk 0:00:04]}  Kxc4 {[%clk 0:00:16]} 65. Kf3 {[%clk 0:00:05]}  Kb4 {[%clk 0:00:17]} 66. Kxf4 {[%clk 0:00:06]}  c4 {[%clk 0:00:17]} 67. Kg5 {[%clk 0:00:07]}  c3 {[%clk 0:00:18]} 68. Kxh5 {[%clk 0:00:08]}  c2 {[%clk 0:00:18]} 69. Kh6 {[%clk 0:00:09]}  c1=Q+ {[%clk 0:00:19]} 70. Kh7 {[%clk 0:00:09]}  Kxa4 {[%clk 0:00:20]} 71. h5 {[%clk 0:00:09]}  Kb3 {[%clk 0:00:20]} 72. h6 {[%clk 0:00:10]}  a4 {[%clk 0:00:20]} 73. Kg7 {[%clk 0:00:11]}  a3 {[%clk 0:00:20]} 74. h7 {[%clk 0:00:11]}  a2 {[%clk 0:00:19]} 75. h8=Q {[%clk 0:00:11]}  a1=Q+ {[%clk 0:00:19]} 76. Kg8 {[%clk 0:00:11]}  Qc8+ {[%clk 0:00:19]} 77. Kf7 {[%clk 0:00:09]}  Qaxh8 {[%clk 0:00:18]} 78. Ke7 {[%clk 0:00:09]}  Qhf8# {[%clk 0:00:18]} 0-1


[Site "https://www.chess.com"]

[Event "Titled Tuesday Blitz August 1 Late 2023"]
[White "Davidson, Kevin"]
[Black "Osmonbekov, Talaibek"]
[WhiteFideId "2056810"]
[BlackFideId "2017253"]
[WhiteElo "2412"]
[BlackElo "2222"]
[Result "1-0"]
[Round "10"]
[TimeControl "180+1"]
[Date "2023.08.01"]
[WhiteClock "0:00:03"]
[BlackClock "0:00:03"]
[Board "83"]

1. e4 {[%clk 0:03:00]}  c5 {[%clk 0:02:59]} 2. Nf3 {[%clk 0:03:00]}  d6 {[%clk 0:03:00]} 3. d4 {[%clk 0:03:00]}  cxd4 {[%clk 0:03:01]} 4. Nxd4 {[%clk 0:03:00]}  Nf6 {[%clk 0:03:02]} 5. Nc3 {[%clk 0:03:01]}  g6 {[%clk 0:03:02]} 6. Be3 {[%clk 0:03:00]}  Bg7 {[%clk 0:03:02]} 7. f3 {[%clk 0:03:01]}  O-O {[%clk 0:03:02]} 8. Qd2 {[%clk 0:03:02]}  Nc6 {[%clk 0:03:03]} 9. O-O-O {[%clk 0:03:01]}  d5 {[%clk 0:03:02]} 10. Qe1 {[%clk 0:03:02]}  e5 {[%clk 0:03:01]} 11. Nxc6 {[%clk 0:03:02]}  bxc6 {[%clk 0:03:02]} 12. exd5 {[%clk 0:03:02]}  Nxd5 {[%clk 0:03:03]} 13. Bc4 {[%clk 0:03:02]}  Be6 {[%clk 0:03:03]} 14. Ne4 {[%clk 0:03:03]}  Qc7 {[%clk 0:02:58]} 15. Bc5 {[%clk 0:03:02]}  Rfd8 {[%clk 0:02:58]} 16. g4 {[%clk 0:03:02]}  Bh6+ {[%clk 0:02:58]} 17. g5 {[%clk 0:02:39]}  Bg7 {[%clk 0:02:58]} 18. h4 {[%clk 0:02:39]}  Nf4 {[%clk 0:02:48]} 19. Bxe6 {[%clk 0:02:37]}  Nxe6 {[%clk 0:02:48]} 20. Bd6 {[%clk 0:02:37]}  Qb6 {[%clk 0:02:34]} 21. h5 {[%clk 0:02:32]}  Rab8 {[%clk 0:02:22]} 22. Bxb8 {[%clk 0:02:19]}  Rxb8 {[%clk 0:02:22]} 23. b3 {[%clk 0:02:11]}  Qa6 {[%clk 0:01:57]} 24. Kb1 {[%clk 0:01:58]}  Qa3 {[%clk 0:01:56]} 25. hxg6 {[%clk 0:01:55]}  hxg6 {[%clk 0:01:51]} 26. Qh4 {[%clk 0:01:33]}  Kf8 {[%clk 0:01:49]} 27. Rd7 {[%clk 0:01:14]}  Nc5 {[%clk 0:01:32]} 28. Nxc5 {[%clk 0:00:48]}  e4 {[%clk 0:01:32]} 29. c3 {[%clk 0:00:40]}  Bxc3 {[%clk 0:01:18]} 30. Rxf7+ {[%clk 0:00:30]}  Kxf7 {[%clk 0:01:11]} 31. Qf4+ {[%clk 0:00:28]}  Kg7 {[%clk 0:00:31]} 32. Ne6+ {[%clk 0:00:20]}  Kg8 {[%clk 0:00:29]} 33. Qxb8+ {[%clk 0:00:19]}  Kf7 {[%clk 0:00:29]} 34. Nd8+ {[%clk 0:00:13]}  Kg7 {[%clk 0:00:05]} 35. Qc7+ {[%clk 0:00:03]}  Kg8 {[%clk 0:00:03]} 36. Qf7# {[%clk 0:00:03]} 1-0


[Site "https://www.chess.com"]

[Event "Titled Tuesday Blitz August 1 Late 2023"]
[White "Rottenwohrer Suarez, Juan"]
[Black "Vafin, Ayrat"]
[WhiteFideId "32068182"]
[BlackFideId "4146530"]
[WhiteElo "2484"]
[BlackElo "2292"]
[Result "1-0"]
[Round "10"]
[TimeControl "180+1"]
[Date "2023.08.01"]
[WhiteClock "0:00:10"]
[BlackClock "0:00:00"]
[Board "86"]

1. e4 {[%clk 0:03:00]}  e5 {[%clk 0:02:59]} 2. Nf3 {[%clk 0:02:58]}  Nf6 {[%clk 0:02:59]} 3. Nxe5 {[%clk 0:02:57]}  d6 {[%clk 0:03:00]} 4. Nf3 {[%clk 0:02:57]}  Nxe4 {[%clk 0:03:00]} 5. d4 {[%clk 0:02:57]}  d5 {[%clk 0:03:00]} 6. Bd3 {[%clk 0:02:58]}  Nc6 {[%clk 0:03:00]} 7. O-O {[%clk 0:02:58]}  Be7 {[%clk 0:03:00]} 8. Re1 {[%clk 0:02:59]}  Bf5 {[%clk 0:03:00]} 9. c4 {[%clk 0:02:55]}  Nb4 {[%clk 0:02:59]} 10. Bf1 {[%clk 0:02:40]}  O-O {[%clk 0:02:57]} 11. a3 {[%clk 0:02:34]}  Nc6 {[%clk 0:02:41]} 12. Nc3 {[%clk 0:02:35]}  Nxc3 {[%clk 0:02:39]} 13. bxc3 {[%clk 0:02:35]}  Bf6 {[%clk 0:02:34]} 14. Bb2 {[%clk 0:02:32]}  Na5 {[%clk 0:02:30]} 15. cxd5 {[%clk 0:02:23]}  Qxd5 {[%clk 0:02:31]} 16. Qa4 {[%clk 0:02:24]}  Bd7 {[%clk 0:02:17]} 17. Qc2 {[%clk 0:02:12]}  Nc4 {[%clk 0:02:07]} 18. Bc1 {[%clk 0:02:04]}  Bf5 {[%clk 0:01:50]} 19. Qb3 {[%clk 0:02:01]}  Nb6 {[%clk 0:01:50]} 20. c4 {[%clk 0:01:58]}  Qd7 {[%clk 0:01:46]} 21. Bb2 {[%clk 0:01:43]}  Na4 {[%clk 0:01:39]} 22. Ne5 {[%clk 0:01:39]}  Bxe5 {[%clk 0:01:36]} 23. Rxe5 {[%clk 0:01:38]}  Nxb2 {[%clk 0:01:35]} 24. Qxb2 {[%clk 0:01:38]}  c6 {[%clk 0:01:33]} 25. Rd1 {[%clk 0:01:36]}  Rfe8 {[%clk 0:01:31]} 26. f4 {[%clk 0:01:31]}  f6 {[%clk 0:01:15]} 27. Rxe8+ {[%clk 0:01:15]}  Qxe8 {[%clk 0:01:07]} 28. d5 {[%clk 0:01:16]}  Qe3+ {[%clk 0:01:01]} 29. Kh1 {[%clk 0:01:15]}  cxd5 {[%clk 0:00:57]} 30. cxd5 {[%clk 0:01:16]}  Qxf4 {[%clk 0:00:51]} 31. Qxb7 {[%clk 0:01:12]}  Rd8 {[%clk 0:00:46]} 32. d6 {[%clk 0:01:11]}  h5 {[%clk 0:00:37]} 33. Qe7 {[%clk 0:01:11]}  Rd7 {[%clk 0:00:10]} 34. Qe8+ {[%clk 0:01:10]}  Kh7 {[%clk 0:00:11]} 35. Qxh5+ {[%clk 0:01:11]}  Kg8 {[%clk 0:00:11]} 36. Bc4+ {[%clk 0:01:03]}  Qxc4 {[%clk 0:00:11]} 37. Qxf5 {[%clk 0:01:00]}  Rxd6 {[%clk 0:00:11]} 38. Rb1 {[%clk 0:00:51]}  Rd8 {[%clk 0:00:10]} 39. h3 {[%clk 0:00:49]}  Qd3 {[%clk 0:00:09]} 40. Qe6+ {[%clk 0:00:40]}  Kh8 {[%clk 0:00:09]} 41. Rb4 {[%clk 0:00:35]}  Qd1+ {[%clk 0:00:07]} 42. Kh2 {[%clk 0:00:34]}  Qd6+ {[%clk 0:00:08]} 43. Qxd6 {[%clk 0:00:34]}  Rxd6 {[%clk 0:00:08]} 44. Rb7 {[%clk 0:00:32]}  Ra6 {[%clk 0:00:08]} 45. Rb3 {[%clk 0:00:32]}  Ra4 {[%clk 0:00:08]} 46. g4 {[%clk 0:00:30]}  Kh7 {[%clk 0:00:06]} 47. Kg3 {[%clk 0:00:30]}  g5 {[%clk 0:00:06]} 48. Rc3 {[%clk 0:00:16]}  Kg6 {[%clk 0:00:06]} 49. Kf2 {[%clk 0:00:16]}  Kf7 {[%clk 0:00:06]} 50. Ke2 {[%clk 0:00:16]}  Ke6 {[%clk 0:00:06]} 51. Kd2 {[%clk 0:00:17]}  Ke5 {[%clk 0:00:05]} 52. Kc2 {[%clk 0:00:17]}  Ke4 {[%clk 0:00:03]} 53. Kb3 {[%clk 0:00:17]}  Ra6 {[%clk 0:00:03]} 54. a4 {[%clk 0:00:16]}  Rb6+ {[%clk 0:00:03]} 55. Ka3 {[%clk 0:00:16]}  Rd6 {[%clk 0:00:02]} 56. Kb4 {[%clk 0:00:12]}  Rd5 {[%clk 0:00:01]} 57. a5 {[%clk 0:00:11]}  Ke5 {[%clk 0:00:01]} 58. a6 {[%clk 0:00:10]}  Rd6 {[%clk 0:00:02]} 59. Kb5 {[%clk 0:00:09]}  Rb6+ {[%clk 0:00:00]} 60. Ka5 {[%clk 0:00:10]} 1-0


[Site "https://www.chess.com"]

[Event "Titled Tuesday Blitz August 1 Late 2023"]
[White "Rama, Tejas"]
[Black "Cardozo Munar, Carlos Eduardo"]
[WhiteFideId "30907381"]
[BlackFideId "4409477"]
[WhiteElo "2416"]
[BlackElo "2275"]
[Result "0-1"]
[Round "10"]
[TimeControl "180+1"]
[Date "2023.08.01"]
[WhiteClock "0:00:24"]
[BlackClock "0:00:53"]
[Board "87"]

1. d4 {[%clk 0:02:53]}  d5 {[%clk 0:03:00]} 2. c4 {[%clk 0:02:50]}  e5 {[%clk 0:03:00]} 3. dxe5 {[%clk 0:02:36]}  d4 {[%clk 0:03:01]} 4. Nf3 {[%clk 0:02:35]}  Nc6 {[%clk 0:03:00]} 5. Nbd2 {[%clk 0:02:13]}  Bg4 {[%clk 0:02:55]} 6. g3 {[%clk 0:02:11]}  Nge7 {[%clk 0:02:55]} 7. Bg2 {[%clk 0:02:10]}  Ng6 {[%clk 0:02:55]} 8. O-O {[%clk 0:02:10]}  Qd7 {[%clk 0:02:55]} 9. a3 {[%clk 0:02:05]}  a5 {[%clk 0:02:53]} 10. Nb3 {[%clk 0:01:47]}  O-O-O {[%clk 0:02:42]} 11. Bd2 {[%clk 0:01:39]}  a4 {[%clk 0:02:29]} 12. Nc1 {[%clk 0:01:37]}  Ncxe5 {[%clk 0:02:29]} 13. Nxe5 {[%clk 0:01:31]}  Nxe5 {[%clk 0:02:29]} 14. Bb4 {[%clk 0:01:08]}  d3 {[%clk 0:02:19]} 15. f3 {[%clk 0:01:02]}  Bf5 {[%clk 0:01:30]} 16. e4 {[%clk 0:00:59]}  Be6 {[%clk 0:01:26]} 17. c5 {[%clk 0:00:51]}  d2 {[%clk 0:01:02]} 18. Ne2 {[%clk 0:00:48]}  Bb3 {[%clk 0:01:01]} 19. Qxd2 {[%clk 0:00:34]}  Qxd2 {[%clk 0:01:00]} 20. Bxd2 {[%clk 0:00:35]}  Rxd2 {[%clk 0:01:00]} 21. Nc3 {[%clk 0:00:30]}  Bxc5+ {[%clk 0:00:57]} 22. Kh1 {[%clk 0:00:29]}  Rhd8 {[%clk 0:00:55]} 23. Rab1 {[%clk 0:00:24]}  Nd3 {[%clk 0:00:53]} 0-1


[Site "https://www.chess.com"]

[Event "Titled Tuesday Blitz August 1 Late 2023"]
[White "Balla, Tamas-Kristof"]
[Black "UgarteCesar"]
[WhiteFideId "1208497"]
[WhiteElo "2366"]
[BlackElo "2242"]
[Result "1-0"]
[Round "10"]
[TimeControl "180+1"]
[Date "2023.08.01"]
[WhiteClock "0:01:10"]
[BlackClock "0:00:01"]
[Board "89"]

1. e4 {[%clk 0:03:00]}  c5 {[%clk 0:02:59]} 2. c3 {[%clk 0:02:59]}  d5 {[%clk 0:02:58]} 3. exd5 {[%clk 0:02:59]}  Qxd5 {[%clk 0:02:59]} 4. d4 {[%clk 0:02:59]}  Nc6 {[%clk 0:03:00]} 5. Nf3 {[%clk 0:03:00]}  Bg4 {[%clk 0:03:00]} 6. Be2 {[%clk 0:03:00]}  cxd4 {[%clk 0:03:00]} 7. cxd4 {[%clk 0:02:59]}  e6 {[%clk 0:03:00]} 8. Nc3 {[%clk 0:03:00]}  Bb4 {[%clk 0:03:01]} 9. Be3 {[%clk 0:03:00]}  Nge7 {[%clk 0:02:58]} 10. O-O {[%clk 0:03:00]}  Bxc3 {[%clk 0:02:58]} 11. bxc3 {[%clk 0:03:00]}  O-O {[%clk 0:02:58]} 12. h3 {[%clk 0:03:00]}  Bxf3 {[%clk 0:02:57]} 13. Bxf3 {[%clk 0:03:00]}  Qa5 {[%clk 0:02:58]} 14. c4 {[%clk 0:02:59]}  Rfd8 {[%clk 0:02:57]} 15. Qd3 {[%clk 0:02:53]}  Rac8 {[%clk 0:02:55]} 16. Rfd1 {[%clk 0:02:51]}  Qa6 {[%clk 0:02:52]} 17. Rac1 {[%clk 0:02:28]}  h6 {[%clk 0:02:37]} 18. Qb3 {[%clk 0:02:20]}  Na5 {[%clk 0:02:33]} 19. Qa3 {[%clk 0:02:19]}  Nf5 {[%clk 0:02:02]} 20. Bxb7 {[%clk 0:01:47]}  Qxb7 {[%clk 0:01:57]} 21. Qxa5 {[%clk 0:01:47]}  Nxe3 {[%clk 0:01:39]} 22. fxe3 {[%clk 0:01:43]}  Qe4 {[%clk 0:01:36]} 23. Qc3 {[%clk 0:01:38]}  Rd7 {[%clk 0:01:00]} 24. c5 {[%clk 0:01:25]}  Qd5 {[%clk 0:00:52]} 25. Qd3 {[%clk 0:01:21]}  Qxa2 {[%clk 0:00:48]} 26. e4 {[%clk 0:01:21]}  Qa5 {[%clk 0:00:35]} 27. c6 {[%clk 0:01:18]}  Rd6 {[%clk 0:00:28]} 28. d5 {[%clk 0:01:13]}  exd5 {[%clk 0:00:28]} 29. exd5 {[%clk 0:01:14]}  Qb6+ {[%clk 0:00:17]} 30. Kh1 {[%clk 0:01:14]}  Rcxc6 {[%clk 0:00:01]} 31. Rxc6 {[%clk 0:01:10]} 1-0


[Site "https://www.chess.com"]

[Event "Titled Tuesday Blitz August 1 Late 2023"]
[White "AndresDelgado77"]
[Black "Vila Dupla, Aurelio"]
[BlackFideId "2203383"]
[WhiteElo "2361"]
[BlackElo "2173"]
[Result "1-0"]
[Round "10"]
[TimeControl "180+1"]
[Date "2023.08.01"]
[WhiteClock "0:01:33"]
[BlackClock "0:00:00"]
[Board "90"]

1. e4 {[%clk 0:02:58]}  c5 {[%clk 0:03:00]} 2. Nf3 {[%clk 0:02:45]}  d6 {[%clk 0:03:00]} 3. d4 {[%clk 0:02:42]}  cxd4 {[%clk 0:02:59]} 4. Qxd4 {[%clk 0:02:42]}  Nc6 {[%clk 0:02:59]} 5. Bb5 {[%clk 0:02:41]}  Bd7 {[%clk 0:02:59]} 6. Qd3 {[%clk 0:02:41]}  g6 {[%clk 0:02:51]} 7. Nc3 {[%clk 0:02:35]}  Bg7 {[%clk 0:02:50]} 8. Bg5 {[%clk 0:02:33]}  Nf6 {[%clk 0:02:46]} 9. O-O-O {[%clk 0:02:33]}  a6 {[%clk 0:02:36]} 10. Ba4 {[%clk 0:02:32]}  O-O {[%clk 0:02:12]} 11. Rhe1 {[%clk 0:02:32]}  h6 {[%clk 0:01:59]} 12. Bh4 {[%clk 0:02:28]}  g5 {[%clk 0:01:55]} 13. Bg3 {[%clk 0:02:26]}  Ng4 {[%clk 0:01:55]} 14. Qe2 {[%clk 0:02:16]}  Qa5 {[%clk 0:01:30]} 15. Bb3 {[%clk 0:02:06]}  Be6 {[%clk 0:01:08]} 16. Nd5 {[%clk 0:01:54]}  Rfe8 {[%clk 0:00:43]} 17. h4 {[%clk 0:01:49]}  Bxd5 {[%clk 0:00:26]} 18. exd5 {[%clk 0:01:49]}  Nb4 {[%clk 0:00:26]} 19. a3 {[%clk 0:01:45]}  Nxc2 {[%clk 0:00:19]} 20. Bxc2 {[%clk 0:01:43]}  Rac8 {[%clk 0:00:17]} 21. Kb1 {[%clk 0:01:39]}  Qb6 {[%clk 0:00:13]} 22. Bf5 {[%clk 0:01:39]}  e6 {[%clk 0:00:07]} 23. dxe6 {[%clk 0:01:36]}  fxe6 {[%clk 0:00:00]} 24. Bxg4 {[%clk 0:01:33]} 1-0


[Site "https://www.chess.com"]